bitfinex/quotes_ETHUSD_20240711
["timestamp","ask_amount","ask_price","bid_price","bid_amount"]
[1720708069965,3.17874,3145.9,3144.9,3.17972]
[1720708069966,3.17887,3145.8,3144.9,3.17967]
[1720708070171,1.39479893,3145.9,3145.1,3.17954]
[1720708070374,3.91916582,3145.9,3145.1,3.17954]
[1720708070669,3.17905,3145.6,3144.7,3.17991]
[1720708071005,3.17905,3145.6,3144.5,3.18013]
[1720708071006,3.17927,3145.4,3144.5,3.18013]
[1720708071207,0.74052537,3145.4,3144.5,3.18013]
[1720708071504,0.74052537,3145.4,3143.7,2.3598]
[1720708071505,3.17961,3145.1,3144.1,3.18051]
[1720708071872,1.04722193,3145.0,3144.1,3.18054]
[1720708072181,0.98221998,3145.2,3143.7,5.5407]
[1720708072182,0.65481332,3145.2,3144.6,3.18005]
[1720708072492,4.57467043,3145.4,3144.6,3.18005]
[1720708072787,0.5556983,3145.3,3144.6,3.18005]
[1720708073017,4.57467043,3145.4,3144.6,3.18005]
[1720708073169,0.39254774,3145.3,3144.6,3.18005]
[1720708073385,0.9823126,3145.5,3144.8,3.17984]
[1720708073386,0.65487506,3145.5,3144.8,3.17984]
[1720708073716,1.04743256,3145.5,3144.6,3.18005]
[1720708074005,0.3925795,3145.4,3144.6,3.18005]
[1720708074180,1.04745456,3145.4,3144.6,3.18005]
[1720708074382,3.83407506,3145.5,3144.6,3.18005]
[1720708074783,0.65487506,3145.7,3145.0,3.17964]
[1720708075119,1.30975013,3146.0,3145.4,3.17917]
[1720708075120,0.65487506,3146.0,3145.4,3.17917]
[1720708075268,1.0475493,3146.0,3145.4,3.17917]
[1720708075475,0.65487506,3146.1,3145.4,3.17917]
[1720708075781,0.65487506,3146.1,3144.8,3.17978]
[1720708075782,0.65487506,3145.9,3144.8,3.17978]
[1720708076004,0.38335151,3145.8,3144.8,3.17978]
[1720708076197,0.38335151,3145.8,3144.6,0.318005]
[1720708076198,1.04748503,3145.8,3144.6,0.318005]
[1720708076403,3.83368506,3145.9,3145.0,3.17957]
[1720708076674,3.83368506,3145.9,3144.8,3.1798]
[1720708076675,0.65487506,3145.9,3144.8,3.1798]
[1720708076875,1.30975013,3146.2,3145.5,3.17914]
[1720708076876,0.65487506,3146.2,3145.5,3.17914]
[1720708077197,0.65487506,3146.4,3145.6,3.17897]
[1720708077399,0.65487506,3146.5,3145.8,3.17883]
[1720708077610,0.65487506,3146.7,3146.0,3.17862]
[1720708077813,0.65487506,3146.9,3146.0,3.17862]
[1720708078013,1.04736194,3146.9,3146.2,3.17842]
[1720708078187,0.65487506,3146.8,3146.2,3.17842]
[1720708078406,1.42538883,3147.1,3146.2,3.17842]
[1720708078407,0.77051376,3147.1,3146.2,3.17842]
[1720708078609,0.77051376,3147.1,3145.8,0.317883]
[1720708078610,1.04730469,3147.0,3146.3,3.17832]
[1720708078809,1.2635464,3147.1,3146.3,3.17832]
[1720708078979,0.39230905,3147.0,3146.1,3.17847]
[1720708079173,1.04718411,3147.0,3145.9,3.17866]
[1720708079415,0.73432273,3147.0,3145.9,3.17866]
[1720708079613,0.65487506,3146.9,3145.9,3.17866]
[1720708079785,1.04715298,3146.8,3145.8,0.317883]
[1720708080111,3.178,3146.7,3144.8,3.17985]
[1720708080325,3.1779,3146.8,3145.8,3.17876]
[1720708080482,0.65487506,3146.8,3145.8,3.17876]
[1720708080681,2.87146978,3146.7,3144.8,2.984]
[1720708080976,2.87146978,3146.7,3145.0,3.17957]
[1720708080977,3.17875,3145.9,3145.0,3.17957]
[1720708081323,0.65487506,3145.8,3145.0,0.63594]
[1720708081632,0.9823126,3146.1,3145.0,0.63594]
[1720708081633,3.83341506,3146.1,3145.1,3.17952]
[1720708081789,3.83337506,3146.2,3145.2,3.17943]
[1720708081978,0.65487506,3146.3,3145.5,3.1791]
[1720708082479,0.65487506,3146.6,3146.1,3.17847]
[1720708082679,0.65487506,3146.8,3146.2,3.17842]
[1720708082908,1.20516473,3147.0,3146.2,3.17842]
[1720708083109,0.65487506,3146.8,3146.2,3.1784]
[1720708083311,4.71028227,3147.0,3146.2,3.1784]
[1720708083312,0.65487506,3147.0,3146.4,3.17823]
[1720708083581,0.1156387,3147.1,3146.4,3.17815]
[1720708083806,0.1156387,3147.1,3146.5,3.1781]
[1720708084515,1.04856678,3147.0,3145.8,3.17879]
[1720708084725,1.09930456,3147.1,3145.8,3.17879]
[1720708084726,0.77141594,3147.1,3146.3,3.17823]
[1720708085136,0.77141594,3147.1,3146.1,3.17844]
[1720708085428,4.22632391,3147.0,3146.1,3.17844]
[1720708085734,0.65577724,3146.8,3146.1,3.17844]
[1720708085889,0.65577724,3146.9,3146.1,3.17844]
[1720708086209,0.77141594,3147.1,3146.4,3.1782]
[1720708086395,0.77141594,3147.1,3145.3,1.5]
[1720708086396,0.1156387,3147.1,3146.6,3.17802]
[1720708086596,0.1156387,3147.1,3146.6,3.495822]
[1720708086926,0.1156387,3147.1,3147.0,3.17762]
[1720708087893,0.1156387,3147.1,3147.0,6.35524]
[1720708088088,0.1156387,3147.1,3147.0,3.17762]
[1720708088295,0.1156387,3147.1,3146.6,0.317802]
[1720708088296,0.1156387,3147.1,3146.6,3.178]
[1720708088790,0.1156387,3147.1,3146.5,3.17807]
[1720708088991,0.1156387,3147.1,3145.5,8.79]
[1720708088992,0.1156387,3147.1,3146.0,3.17857]
[1720708089191,0.1156387,3147.1,3145.3,3.17925]
[1720708089192,0.77211725,3147.1,3145.3,3.17925]
[1720708089425,3.17814,3146.5,3145.6,3.17896]
[1720708090038,3.17814,3146.5,3145.5,3.17913]
[1720708090343,0.65508157,3146.7,3145.7,3.17893]
[1720708090503,3.83313157,3146.6,3145.7,3.17893]
[1720708090699,3.1782,3146.5,3145.6,3.17904]
[1720708091011,0.65508157,3146.5,3145.7,3.17893]
[1720708091341,0.65508157,3146.6,3145.8,3.17879]
[1720708091510,0.65508157,3146.8,3146.0,3.17862]
[1720708091715,3.17768,3147.0,3146.3,3.17824]
[1720708091716,0.65508157,3147.0,3146.3,3.17824]
[1720708091921,3.94834027,3147.1,3145.8,3.17874]
[1720708092122,0.39281577,3147.0,3145.5,3.1791]
[1720708092347,0.1156387,3147.1,3146.6,3.17795]
[1720708092962,0.1156387,3147.1,3145.3,0.55]
[1720708093113,0.1156387,3147.1,3145.0,3.81594]
[1720708093114,3.17809,3146.6,3145.7,3.17887]
[1720708093623,3.83317157,3146.6,3145.7,3.17892]
[1720708094021,0.65508157,3146.7,3145.8,3.17884]
[1720708094225,1.04798741,3146.7,3145.9,3.17866]
[1720708094409,1.04798741,3146.7,3145.9,6.35731]
[1720708094611,0.65508157,3146.7,3145.9,6.35731]
[1720708094833,0.65508157,3146.7,3145.9,3.17865]
[1720708094834,1.04809835,3146.7,3145.9,3.17865]
[1720708095036,1.04809835,3146.6,3145.7,3.1789]
[1720708095249,6.13106165,3146.5,3145.5,3.17907]
[1720708095426,1.04823384,3146.4,3145.5,3.17907]
[1720708095637,1.04823384,3146.4,3145.7,3.17888]
[1720708096004,0.65508157,3146.6,3145.4,3.17916]
[1720708096124,0.65613201,3146.7,3145.7,3.1789]
[1720708096309,0.65613201,3146.7,3145.9,6.35731]
[1720708096909,0.65613201,3146.7,3146.0,3.17863]
[1720708097125,0.65613201,3146.9,3145.9,3.17872]
[1720708097354,0.65613201,3147.0,3146.4,3.17816]
[1720708097560,0.77177071,3147.1,3146.4,3.17816]
[1720708097863,3.41787381,3147.0,3145.8,3.17876]
[1720708098062,3.41787381,3147.0,3144.9,6.34974]
[1720708098063,3.17809,3146.6,3145.4,3.17924]
[1720708098279,3.17826,3146.4,3145.4,3.17924]
[1720708098554,3.17826,3146.4,3144.9,6.34972]
[1720708098555,3.83439201,3146.4,3145.5,3.17906]
[1720708098925,7.81237001,3146.4,3145.3,6.35855]
[1720708099114,3.17833,3146.3,3145.4,3.17922]
[1720708099320,3.25779329,3146.3,3145.4,3.17922]
[1720708099539,4.63413056,3146.4,3145.5,3.17912]
[1720708099851,0.65620256,3146.6,3145.9,3.17867]
[1720708100058,4.22744508,3146.5,3145.7,3.17887]
[1720708100265,3.83430256,3146.6,3145.8,3.17884]
[1720708100468,3.1781,3146.6,3145.8,3.17884]
[1720708100625,0.65620256,3146.7,3146.1,3.17846]
[1720708100812,0.65620256,3146.8,3146.2,3.17839]
[1720708101013,0.65620256,3146.9,3146.2,3.17839]
[1720708101218,0.39273032,3146.8,3146.1,3.17846]
[1720708101435,0.65620256,3146.8,3146.0,3.17863]
[1720708101657,0.39266964,3146.7,3145.2,2.4298]
[1720708101873,2.94580256,3147.0,3146.3,3.17824]
[1720708102230,0.39262605,3146.9,3146.3,3.17824]
[1720708102432,1.04885192,3146.9,3146.3,3.17825]
[1720708102658,0.77184126,3147.1,3146.6,3.17801]
[1720708102884,0.1156387,3147.1,3146.6,3.495811]
[1720708103037,0.1156387,3147.1,3146.8,6.3555]
[1720708103371,0.1156387,3147.1,3147.0,3.17762]
[1720708103590,0.1156387,3147.1,3147.0,6.35524]
[1720708103880,0.1156387,3147.1,3147.0,3.17762]
[1720708105245,0.1156387,3147.1,3146.6,0.317801]
[1720708105455,0.1156387,3147.1,3146.2,2.3366]
[1720708105659,0.1156387,3147.1,3147.0,3.17762]
[1720708106460,0.1156387,3147.1,3147.0,6.35524]
[1720708107073,0.1156387,3147.1,3147.0,3.17762]
[1720708107231,0.1156387,3147.1,3147.0,6.35524]
[1720708107437,0.1156387,3147.1,3147.0,6.990764]
[1720708108835,0.1156387,3147.1,3147.0,10.168384]
[1720708111547,0.1156387,3147.1,3147.0,13.896004]
[1720708112249,0.1156387,3147.1,3147.0,10.718384]
[1720708112748,0.1156387,3147.1,3147.0,13.896004]
[1720708113256,0.65703054,3147.7,3147.0,13.896004]
[1720708113257,0.65703054,3147.7,3147.6,9.53106]
[1720708113467,0.65703054,3147.7,3147.6,14.33388]
[1720708113855,0.65703054,3147.7,3147.6,17.5109]
[1720708114677,0.65703054,3147.7,3147.6,13.78388]
[1720708114905,0.65703054,3147.7,3147.6,7.62486]
[1720708115211,0.65703054,3147.7,3147.6,6.35404]
[1720708116614,0.65703054,3147.7,3147.0,3.17754]
[1720708116759,0.65703054,3147.7,3147.2,3.17737]
[1720708117303,0.65703054,3147.7,3147.4,3.17721]
[1720708118401,0.65703054,3147.7,3147.5,3.17712]
[1720708119087,0.65703054,3147.7,3147.6,3.17702]
[1720708120099,0.00082798,3147.7,3147.6,3.17702]
[1720708120409,0.00082798,3147.7,3147.6,6.35404]
[1720708120773,0.00082798,3147.7,3147.5,0.635433]
[1720708121010,0.00082798,3147.7,3147.2,3.17738]
[1720708121285,0.00082798,3147.7,3147.1,3.17746]
[1720708121475,0.00082798,3147.7,3147.2,3.1774]
[1720708121674,0.00082798,3147.7,3147.4,3.17722]
[1720708122085,0.00082798,3147.7,3147.4,3.17717]
[1720708122285,0.00082798,3147.7,3147.6,6.35404]
[1720708124561,0.00082798,3147.7,3147.6,9.53106]
[1720708125086,0.00082798,3147.7,3147.6,10.08106]
[1720708125895,0.00082798,3147.7,3147.6,13.25808]
[1720708126093,0.00082798,3147.7,3147.6,16.24008]
[1720708126285,0.00082798,3147.7,3147.6,18.4507467]
[1720708126994,0.00082798,3147.7,3147.6,15.2737267]
[1720708127168,0.00082798,3147.7,3147.6,12.2917267]
[1720708127797,0.00082798,3147.7,3147.6,11.7417267]
[1720708127970,0.00082798,3147.7,3147.6,9.53106]
[1720708128417,0.00082798,3147.7,3147.6,10.08106]
[1720708128920,0.00082798,3147.7,3147.6,9.53106]
[1720708129070,0.00082798,3147.7,3147.6,6.35404]
[1720708129274,0.00082798,3147.7,3147.6,9.53106]
[1720708129497,0.00082798,3147.7,3147.6,7.3389177]
[1720708129881,0.00082798,3147.7,3147.6,4.1618977]
[1720708130587,0.00082798,3147.7,3147.4,3.17718]
[1720708130990,0.00082798,3147.7,3147.4,3.17717]
[1720708131189,0.00082798,3147.7,3147.5,3.17703]
[1720708131480,0.00082798,3147.7,3147.6,3.17702]
[1720708131814,0.00082798,3147.7,3147.2,3.17737]
[1720708131981,0.00082798,3147.7,3146.8,6.1598]
[1720708131982,0.00082798,3147.7,3147.6,3.17702]
[1720708132384,0.00082798,3147.7,3147.6,6.35404]
[1720708134180,0.00082798,3147.7,3147.6,9.53106]
[1720708134713,0.00082798,3147.7,3147.6,13.25808]
[1720708135215,0.00081973,3149.2,3147.6,13.25808]
[1720708135216,0.00081973,3149.2,3148.8,3.17576]
[1720708135428,0.00081973,3149.2,3147.9,3.1767]
[1720708135429,0.00081973,3149.2,3148.7,3.17585]
[1720708135587,0.00081973,3149.2,3148.8,6.35147]
[1720708136007,0.00081973,3149.2,3148.8,3.17572]
[1720708136190,0.00081973,3149.2,3148.5,3.1761]
[1720708136510,0.00081973,3149.2,3147.6,3.72699]
[1720708136511,4.27518602,3149.1,3147.6,3.72699]
[1720708136719,1.09960602,3149.0,3148.2,3.1764]
[1720708136916,1.09960602,3149.0,3147.8,3.17676]
[1720708136917,3.2551525,3148.9,3147.8,3.17676]
[1720708137126,3.2551525,3148.9,3147.4,3.17713]
[1720708137127,3.17622,3148.4,3147.4,3.17713]
[1720708137516,3.17607,3148.6,3147.6,3.17694]
[1720708137688,3.17593,3148.7,3147.5,3.1771]
[1720708137689,3.17626,3148.4,3147.5,3.1771]
[1720708138013,4.91125489,3148.5,3147.6,3.17695]
[1720708138014,0.6352,3148.5,3147.6,3.17695]
[1720708138219,1.09988521,3148.4,3147.6,3.17695]
[1720708138543,3.17621,3148.4,3147.3,3.494967]
[1720708138697,1.09991932,3148.3,3147.3,0.317737]
[1720708138902,3.17614,3148.5,3147.4,0.3495087]
[1720708139096,3.17614,3148.5,3147.5,3.17703]
[1720708139097,1.09992133,3148.4,3147.5,3.17703]
[1720708139299,1.09992133,3148.3,3147.7,6.35367]
[1720708139504,7.00540174,3148.7,3147.8,3.17681]
[1720708139844,4.27597227,3148.6,3147.7,3.17683]
[1720708140135,1.8450875,3148.5,3147.7,3.17684]
[1720708140449,1.09989227,3148.4,3147.9,3.1767]
[1720708140747,3.17604,3148.6,3147.7,3.17684]
[1720708140904,1.09986466,3148.5,3147.7,3.17684]
[1720708141105,3.17667,3148.0,3146.5,10.46807]
[1720708141417,3.17667,3148.0,3146.4,2.982]
[1720708141418,3.17719,3147.5,3146.6,3.17803]
[1720708141617,1.10022125,3147.4,3146.6,3.813656]
[1720708141830,1.10024101,3147.3,3146.9,3.17765]
[1720708142161,2.4699,3147.7,3146.8,3.17774]
[1720708142304,1.63391418,3148.2,3146.5,3.17809]
[1720708142305,2.2787,3148.4,3147.6,3.17696]
[1720708142820,2.2787,3148.4,3147.0,3.17755]
[1720708142821,2.2787,3148.4,3147.8,3.17673]
[1720708143004,2.2787,3148.4,3147.9,3.17665]
[1720708143205,2.2787,3148.4,3148.0,3.1766]
[1720708144440,2.2787,3148.4,3148.0,6.35316]
[1720708144737,2.2787,3148.4,3148.0,3.17656]
[1720708144911,2.2787,3148.4,3147.8,3.17673]
[1720708145435,2.2787,3148.4,3148.1,3.17651]
[1720708145654,0.65420389,3148.6,3148.3,3.17624]
[1720708145947,0.65420389,3148.8,3148.3,3.17624]
[1720708146099,0.65420389,3148.7,3148.1,6.35292]
[1720708146442,1.03069352,3148.6,3148.3,3.17629]
[1720708146612,0.65420389,3148.7,3148.4,3.17621]
[1720708146940,0.65420389,3148.7,3148.3,3.17629]
[1720708146941,1.03093123,3148.7,3148.1,6.988212]
[1720708147252,1.03093123,3148.7,3148.3,3.17624]
[1720708147253,0.37672734,3148.6,3148.3,3.17624]
[1720708147548,0.65420389,3148.7,3148.3,3.17622]
[1720708147752,0.65420389,3148.7,3148.1,0.635292]
[1720708147753,0.65420389,3148.8,3148.1,3.17646]
[1720708147902,0.65420389,3148.6,3147.9,3.17667]
[1720708148101,0.65420389,3148.4,3147.9,3.17667]
[1720708148649,1.35812626,3148.5,3148.0,3.17659]
[1720708148650,1.03102431,3148.3,3148.0,3.17659]
[1720708148810,0.65420389,3148.4,3148.0,3.17659]
[1720708149220,0.65420389,3148.4,3147.9,3.17667]
[1720708149221,0.65420389,3148.3,3147.9,3.17667]
[1720708149426,0.65420389,3148.3,3147.9,3.17662]
[1720708149609,0.65420389,3148.3,3148.0,3.17655]
[1720708149938,1.031157,3148.2,3148.0,3.17655]
[1720708150147,0.65420389,3148.3,3148.0,6.988433]
[1720708150350,0.65420389,3148.3,3148.2,3.17641]
[1720708150513,0.65420389,3148.5,3148.2,3.17641]
[1720708150848,0.65420389,3148.5,3148.2,6.35275]
[1720708151080,0.65420389,3148.5,3148.4,3.17621]
[1720708151716,0.65420389,3148.5,3148.2,3.17633]
[1720708152036,0.65420389,3148.5,3148.4,3.17621]
[1720708152213,0.37692167,3148.5,3148.2,3.17641]
[1720708152409,0.65565196,3148.3,3148.2,3.17641]
[1720708152618,0.65565196,3148.4,3148.2,3.17641]
[1720708152812,0.65565196,3148.5,3148.3,0.317641]
[1720708153013,1.03274405,3148.4,3148.2,3.17641]
[1720708153309,0.65565196,3148.4,3148.3,3.17631]
[1720708153509,0.65565196,3148.5,3148.4,3.17621]
[1720708154250,1.03279763,3148.5,3148.4,3.17621]
[1720708154413,0.65565196,3148.5,3148.4,3.17621]
[1720708154610,0.65565196,3148.5,3148.0,0.635333]
[1720708154958,0.65565196,3148.3,3147.6,3.17692]
[1720708155126,0.65565196,3148.3,3148.1,3.17651]
[1720708155127,0.37702093,3148.2,3148.1,3.17651]
[1720708155315,0.65565196,3148.4,3148.2,3.17641]
[1720708155636,0.37697741,3148.3,3148.2,3.17641]
[1720708155831,0.65565196,3148.4,3148.2,3.17641]
[1720708155832,0.65565196,3148.4,3148.3,3.17631]
[1720708156182,0.98130584,3148.6,3148.5,3.17611]
[1720708156183,0.65565196,3148.6,3148.5,3.17611]
[1720708156364,1.03261808,3148.6,3148.5,3.17611]
[1720708156960,1.03261808,3148.6,3148.5,6.35222]
[1720708157170,0.65565196,3148.8,3148.6,3.17601]
[1720708157346,0.98130584,3148.9,3148.8,3.17581]
[1720708157347,0.65565196,3148.9,3148.8,3.17581]
[1720708157769,0.69639408,3149.1,3148.8,3.17581]
[1720708158071,0.65550735,3148.9,3148.8,3.17581]
[1720708158286,1.03243615,3148.9,3148.8,3.17581]
[1720708158466,0.3769288,3148.9,3148.8,3.17581]
[1720708158771,0.65550735,3149.0,3148.8,6.35156]
[1720708158938,0.65550735,3149.0,3148.9,3.17571]
[1720708159139,1.03239468,3149.0,3148.9,3.17571]
[1720708159373,0.37688733,3149.0,3148.9,3.17571]
[1720708159673,0.65550735,3149.0,3148.8,3.17573]
[1720708159864,1.03239468,3149.0,3148.9,3.17571]
[1720708160050,0.37688733,3149.0,3148.9,3.17571]
[1720708160575,0.37705149,3149.0,3148.9,3.17571]
[1720708160878,0.65577155,3149.0,3148.9,3.17571]
[1720708161089,0.37718285,3149.1,3148.9,3.17571]
[1720708161090,0.65577155,3149.1,3148.9,3.17571]
[1720708161386,0.65577155,3149.1,3149.0,3.17561]
[1720708161387,1.03304478,3149.1,3149.0,3.17561]
[1720708161684,0.37727323,3149.1,3149.0,3.17561]
[1720708161868,0.65659128,3149.2,3149.1,3.17551]
[1720708162072,1.03393115,3149.2,3149.1,3.17551]
[1720708162380,1.03393115,3149.2,3149.1,6.35102]
[1720708162589,0.00081973,3149.2,3149.1,6.35102]
[1720708162953,0.00081973,3149.2,3149.1,10.711632]
[1720708163281,0.00081973,3149.2,3149.1,6.986122]
[1720708163865,0.00081973,3149.2,3149.1,10.161632]
[1720708164271,0.00081973,3149.2,3149.1,12.947632]
[1720708164663,0.00081973,3149.2,3149.1,9.222122]
[1720708164897,0.00081973,3149.2,3149.1,6.986122]
[1720708165705,0.00081973,3149.2,3149.1,10.161632]
[1720708165983,0.00081973,3149.2,3149.1,10.711632]
[1720708166403,0.00081973,3149.2,3149.1,12.947632]
[1720708166904,0.00081973,3149.2,3149.1,9.222122]
[1720708167070,0.00081973,3149.2,3149.1,6.986122]
[1720708168378,0.00081973,3149.2,3149.1,10.161632]
[1720708168560,0.00081973,3149.2,3149.1,12.947632]
[1720708170772,0.00081973,3149.2,3149.1,16.123142]
[1720708171607,0.00081973,3149.2,3149.1,12.947632]
[1720708171792,0.00081973,3149.2,3149.1,16.123142]
[1720708172235,0.00081973,3149.2,3149.1,12.947632]
[1720708172793,0.00081973,3149.2,3148.4,3.17619]
[1720708172993,0.00081973,3149.2,3148.9,3.1757]
[1720708173241,0.00081973,3149.2,3149.1,3.17551]
[1720708173408,0.00081973,3149.2,3149.1,6.35102]
[1720708173839,0.00081973,3149.2,3149.1,3.17551]
[1720708174333,0.00081973,3149.2,3149.1,6.35102]
[1720708175510,0.00081973,3149.2,3149.1,6.986122]
[1720708176227,0.00081973,3149.2,3149.1,3.810612]
[1720708176429,0.00081973,3149.2,3148.8,3.17574]
[1720708176637,0.00081973,3149.2,3148.8,6.35147]
[1720708177023,0.00081973,3149.2,3149.0,3.1756]
[1720708177458,0.00081973,3149.2,3148.1,2.236]
[1720708177459,0.00081973,3149.2,3148.6,3.17592]
[1720708177657,0.00081973,3149.2,3148.7,3.17591]
[1720708177862,0.00081973,3149.2,3148.5,3.17605]
[1720708178248,0.00081973,3149.2,3148.5,6.35207]
[1720708178549,0.00081973,3149.2,3148.5,3.17602]
[1720708179152,0.00081973,3149.2,3148.5,3.811249]
[1720708179325,6.62688063,3149.1,3148.1,3.17648]
[1720708179528,3.07578238,3149.1,3148.2,3.17634]
[1720708179725,2.4226,3149.1,3148.4,3.17613]
[1720708180219,2.4226,3149.1,3148.2,3.17638]
[1720708180220,0.37562625,3149.0,3148.2,3.17638]
[1720708180419,0.37562625,3149.0,3147.2,4.83453875]
[1720708180420,3.17627,3148.4,3147.5,3.17706]
[1720708180622,3.17601,3148.6,3147.5,3.17706]
[1720708180623,7.00531513,3148.6,3147.6,3.17701]
[1720708180886,3.82921513,3148.6,3147.6,3.17701]
[1720708181025,3.17611,3148.5,3147.6,3.17701]
[1720708181350,0.65320513,3148.6,3147.5,0.317706]
[1720708181523,3.82926513,3148.6,3147.7,3.17692]
[1720708181720,0.65320513,3148.7,3147.2,2.236]
[1720708181924,0.9798077,3148.9,3148.0,3.17658]
[1720708181925,0.65320513,3148.8,3148.0,3.17658]
[1720708182253,0.65320513,3149.0,3148.2,3.17634]
[1720708182466,2.4226,3149.1,3148.2,3.17634]
[1720708182663,2.4226,3149.1,3148.4,3.17614]
[1720708182839,2.4226,3149.1,3148.3,0.317634]
[1720708183045,3.07580513,3149.1,3148.4,3.1762]
[1720708183358,3.07580513,3149.1,3148.5,3.17608]
[1720708183359,2.4226,3149.1,3148.5,3.17608]
[1720708183538,3.07580513,3149.1,3148.5,3.17608]
[1720708183743,2.4226,3149.1,3148.5,3.17608]
[1720708184657,2.4226,3149.1,3148.6,3.17596]
[1720708184970,2.4226,3149.1,3148.7,3.17589]
[1720708185172,2.4226,3149.1,3148.7,6.35172]
[1720708185346,0.00081973,3149.2,3148.6,0.635204]
[1720708185546,0.00081973,3149.2,3148.1,3.17645]
[1720708185547,0.00081973,3149.2,3148.7,3.17589]
[1720708185761,0.00081973,3149.2,3148.7,6.35172]
[1720708186699,0.00081973,3149.2,3148.9,3.17569]
[1720708190023,0.00081973,3149.2,3148.2,0.55]
[1720708190195,0.00081973,3149.2,3147.9,3.72666]
[1720708190361,0.00081973,3149.2,3148.9,3.17569]
[1720708190556,0.00081973,3149.2,3148.7,3.17582]
[1720708190785,0.00081973,3149.2,3148.0,0.596266]
[1720708190786,0.00081973,3149.2,3148.6,3.176]
[1720708191092,0.00081973,3149.2,3148.0,0.596266]
[1720708191315,0.00081973,3149.2,3148.0,3.17659]
[1720708191627,0.00081973,3149.2,3148.4,3.1762]
[1720708191628,0.65425329,3149.2,3148.4,3.1762]
[1720708191773,1.02910379,3149.1,3148.4,6.35235]
[1720708191979,0.65343356,3149.1,3148.5,3.17605]
[1720708192380,0.65343356,3149.1,3148.5,3.81127]
[1720708192694,2.3802,3149.0,3148.4,3.1762]
[1720708193495,2.3802,3149.0,3148.2,3.17634]
[1720708193496,3.03363356,3149.0,3148.2,3.17634]
[1720708193703,0.65343356,3148.8,3148.2,3.17633]
[1720708194024,0.65343356,3148.8,3148.0,3.17653]
[1720708194181,0.65343356,3148.8,3148.0,0.635334]
[1720708194182,0.37577398,3148.7,3148.0,0.635334]
[1720708194375,1.02917719,3148.7,3147.8,3.17672]
[1720708194606,0.65343356,3148.5,3147.5,7.29]
[1720708194794,2.3138,3148.3,3147.3,3.17728]
[1720708195004,0.65343356,3148.1,3147.3,3.17728]
[1720708195284,1.02918922,3148.0,3147.3,3.17728]
[1720708195524,0.65343356,3148.0,3147.3,3.812728]
[1720708195682,0.65343356,3148.0,3147.3,3.17725]
[1720708195882,0.65343356,3148.1,3147.3,3.17725]
[1720708196120,0.65343356,3148.1,3147.4,3.17721]
[1720708196121,0.37567616,3148.0,3147.4,3.17721]
[1720708196279,0.65343356,3148.1,3147.4,3.17721]
[1720708196485,3.82985356,3148.2,3147.4,3.17721]
[1720708196783,1.02902226,3148.1,3147.4,3.17721]
[1720708196985,0.65343356,3148.1,3147.5,3.17709]
[1720708197618,0.65343356,3148.1,3147.4,0.635463]
[1720708197819,0.65343356,3148.1,3147.3,6.35455]
[1720708197990,0.65343356,3148.1,3147.3,3.17725]
[1720708198325,1.10838878,3148.0,3146.7,3.17789]
[1720708198490,3.17683,3147.8,3146.8,3.17777]
[1720708198822,3.17683,3147.8,3146.7,3.17789]
[1720708198823,3.17699,3147.7,3146.7,3.17789]
[1720708199023,3.17699,3147.7,3146.7,0.635598]
[1720708199024,2.4609,3147.6,3146.7,0.635598]
[1720708199183,3.17718,3147.5,3146.5,3.17809]
[1720708199530,3.17723,3147.4,3146.5,3.17809]
[1720708199735,6.35478,3147.3,3146.3,3.17826]
[1720708199879,6.35478,3147.3,3146.4,3.17823]
[1720708199880,3.17738,3147.3,3146.4,3.17823]
[1720708200082,3.17738,3147.3,3146.2,3.17835]
[1720708200289,3.17738,3147.3,3145.8,7.29]
[1720708200290,2.4965,3147.1,3145.8,7.29]
[1720708200489,2.4965,3147.1,3144.9,10.46971]
[1720708200490,3.17854,3146.1,3144.9,10.46971]
[1720708200829,1.02710635,3146.0,3145.0,3.17962]
[1720708200991,0.65234455,3146.2,3145.9,3.17874]
[1720708201192,0.65234455,3146.9,3146.5,3.17803]
[1720708201424,0.65234455,3147.3,3146.6,0.317803]
[1720708201672,3.47501683,3147.5,3146.3,3.17824]
[1720708201673,0.65234455,3147.4,3146.3,3.17824]
[1720708201847,0.65234455,3148.0,3147.0,3.1776]
[1720708202150,0.65234455,3147.8,3145.8,5.4811]
[1720708202313,0.65234455,3147.8,3146.4,3.17816]
[1720708202314,3.17712,3147.5,3146.4,3.17816]
[1720708202528,3.10687742,3147.7,3146.7,3.17792]
[1720708202529,3.17703,3147.6,3146.7,3.17792]
[1720708202730,3.17703,3147.6,3146.8,0.317792]
[1720708203767,3.17703,3147.6,3146.5,0.55]
[1720708203768,2.3751,3147.7,3146.5,0.55]
[1720708203924,2.3751,3147.7,3146.4,3.17815]
[1720708204127,4.15492683,3148.2,3147.2,3.17739]
[1720708204128,2.4647,3148.2,3147.2,3.17739]
[1720708204465,2.4647,3148.2,3147.3,3.1773]
[1720708204684,2.4647,3148.2,3147.2,3.17739]
[1720708204685,0.65154427,3148.5,3147.8,3.17672]
[1720708204950,3.26401641,3148.7,3148.2,3.1764]
[1720708204951,2.2867,3148.7,3148.2,3.1764]
[1720708205169,4.47840855,3149.3,3148.2,3.1764]
[1720708205170,3.13504427,3149.3,3148.2,3.1764]
[1720708205311,6.31035427,3149.3,3148.3,3.17629]
[1720708205658,6.31035427,3149.3,3147.9,0.867672]
[1720708205659,3.17561,3149.0,3148.0,3.17659]
[1720708205819,3.17583,3148.8,3147.6,3.17702]
[1720708206155,3.91358607,3148.8,3147.8,3.17679]
[1720708206353,3.91358607,3148.8,3147.7,0.317702]
[1720708206354,3.17583,3148.8,3147.7,0.317702]
[1720708206653,3.17632,3148.3,3147.0,3.17]
[1720708206826,3.17674,3147.9,3146.8,3.17782]
[1720708207026,3.17674,3147.9,3146.6,3.17799]
[1720708207027,0.07942473,3147.8,3146.6,3.17799]
[1720708207226,3.82808427,3148.1,3146.9,3.17772]
[1720708207461,5.61172,3148.4,3147.3,3.17732]
[1720708207629,5.61172,3148.4,3147.4,3.17713]
[1720708207630,2.4355,3148.4,3147.4,3.17713]
[1720708207812,3.1764,3148.3,3147.3,3.17731]
[1720708208137,3.08675778,3148.4,3147.1,3.17749]